Workbook

Sheet Myntkast
A1: EN AV MYNTENE ER UBALANSERT!!!
A2: FINN UT HVILKEN!
A3: Kast nr
A4: 1
A7: PK sin Mynt | B7: =IFERROR( _xlfn.BINOM.INV( 1, 0.5, ( MOD((( MOD( (1+1000000)^2 + (1+1000000)*(PM_Index+10000000), 99999989 )) + 1000007 ) * (( MOD( (PM_Index+10000000)^2 + (PM_Index+10000000) * ( MOD( (1+1000000)^2 + (1+1000000)*(PM_Index+10000000), 99999989 )), 99999989 )) + 1000013 ), 2147483647 ) + 0.5 ) / 2147483647 ), 1 * (0.5>=1 )) -> 0 | C7: =IF(B7=0,"KRONE","MYNT") -> KRONE
A9: Bård sin mynt | B9: =IFERROR( _xlfn.BINOM.INV( 1, 0.6, ( MOD((( MOD( (2+1000000)^2 + (2+1000000)*(PM_Index+10000000), 99999989 )) + 1000007 ) * (( MOD( (PM_Index+10000000)^2 + (PM_Index+10000000) * ( MOD( (2+1000000)^2 + (2+1000000)*(PM_Index+10000000), 99999989 )), 99999989 )) + 1000013 ), 2147483647 ) + 0.5 ) / 2147483647 ), 1 * (0.6>=1 )) -> 1 | C9: =IF(B9=0,"KRONE","MYNT") -> MYNT

Sheet PMTable
A1: =Myntkast!A4 -> 1 | B1: Generated with the SIPmath™ Modeler Tools from ProbabilityManagement.org
B2: Index | C2: Coin_1 | D2: Coin_2
B3: Values | C3: =Myntkast!$B$7 -> 0 | D3: =Myntkast!$B$9 -> 1
B4: 1 | C4: 0 | D4: 1
B5: 2 | C5: 1 | D5: 1
B6: 3 | C6: 1 | D6: 1
B7: 4 | C7: 1 | D7: 1
B8: 5 | C8: 0 | D8: 1
B9: 6 | C9: 1 | D9: 1
B10: 7 | C10: 1 | D10: 1
B11: 8 | C11: 1 | D11: 0
B12: 9 | C12: 0 | D12: 0
B13: 10 | C13: 1 | D13: 0
B14: 11 | C14: 0 | D14: 0
B15: 12 | C15: 0 | D15: 0
B16: 13 | C16: 1 | D16: 1
B17: 14 | C17: 1 | D17: 0
B18: 15 | C18: 0 | D18: 1
B19: 16 | C19: 0 | D19: 0
B20: 17 | C20: 0 | D20: 1
B21: 18 | C21: 1 | D21: 1
B22: 19 | C22: 1 | D22: 1
B23: 20 | C23: 1 | D23: 1
B24: 21 | C24: 0 | D24: 1
B25: 22 | C25: 1 | D25: 1
B26: 23 | C26: 1 | D26: 0
B27: 24 | C27: 0 | D27: 0
B28: 25 | C28: 1 | D28: 0
B29: 26 | C29: 0 | D29: 1
B30: 27 | C30: 1 | D30: 1
B31: 28 | C31: 1 | D31: 1
B32: 29 | C32: 0 | D32: 1
B33: 30 | C33: 0 | D33: 1
B34: 31 | C34: 0 | D34: 0
B35: 32 | C35: 0 | D35: 0
B36: 33 | C36: 1 | D36: 1
B37: 34 | C37: 1 | D37: 0
B38: 35 | C38: 1 | D38: 1
B39: 36 | C39: 1 | D39: 1
B40: 37 | C40: 0 | D40: 1
B41: 38 | C41: 0 | D41: 0
B42: 39 | C42: 0 | D42: 1
B43: 40 | C43: 0 | D43: 0
B44: 41 | C44: 1 | D44: 1
B45: 42 | C45: 1 | D45: 0
B46: 43 | C46: 1 | D46: 0
B47: 44 | C47: 1 | D47: 0
B48: 45 | C48: 0 | D48: 0
B49: 46 | C49: 1 | D49: 0
B50: 47 | C50: 0 | D50: 0
B51: 48 | C51: 0 | D51: 0
B52: 49 | C52: 0 | D52: 1
B53: 50 | C53: 1 | D53: 1
B54: 51 | C54: 0 | D54: 0
B55: 52 | C55: 0 | D55: 0
B56: 53 | C56: 0 | D56: 1
B57: 54 | C57: 1 | D57: 1
B58: 55 | C58: 1 | D58: 0
B59: 56 | C59: 1 | D59: 0
B60: 57 | C60: 1 | D60: 1
B61: 58 | C61: 0 | D61: 0
B62: 59 | C62: 0 | D62: 0
B63: 60 | C63: 1 | D63: 1
B64: 61 | C64: 1 | D64: 0
B65: 62 | C65: 1 | D65: 1
B66: 63 | C66: 1 | D66: 1
B67: 64 | C67: 1 | D67: 1
B68: 65 | C68: 1 | D68: 0
B69: 66 | C69: 1 | D69: 0
B70: 67 | C70: 1 | D70: 0
B71: 68 | C71: 0 | D71: 0
B72: 69 | C72: 0 | D72: 1
B73: 70 | C73: 1 | D73: 1
B74: 71 | C74: 0 | D74: 1
B75: 72 | C75: 1 | D75: 0
B76: 73 | C76: 0 | D76: 0
B77: 74 | C77: 0 | D77: 1
B78: 75 | C78: 0 | D78: 1
B79: 76 | C79: 0 | D79: 0
B80: 77 | C80: 0 | D80: 0
B81: 78 | C81: 0 | D81: 1
B82: 79 | C82: 0 | D82: 0
B83: 80 | C83: 1 | D83: 1
B84: 81 | C84: 0 | D84: 1
B85: 82 | C85: 1 | D85: 1
B86: 83 | C86: 0 | D86: 1
B87: 84 | C87: 0 | D87: 0
B88: 85 | C88: 1 | D88: 1
B89: 86 | C89: 1 | D89: 0
B90: 87 | C90: 1 | D90: 0
B91: 88 | C91: 1 | D91: 0
B92: 89 | C92: 0 | D92: 1
B93: 90 | C93: 0 | D93: 1
B94: 91 | C94: 1 | D94: 1
B95: 92 | C95: 1 | D95: 0
B96: 93 | C96: 0 | D96: 0
B97: 94 | C97: 1 | D97: 0
B98: 95 | C98: 1 | D98: 1
B99: 96 | C99: 0 | D99: 1
B100: 97 | C100: 1 | D100: 1
B101: 98 | C101: 0 | D101: 0
B102: 99 | C102: 1 | D102: 1
B103: 100 | C103: 0 | D103: 0
B104: 101 | C104: 1 | D104: 1
B105: 102 | C105: 1 | D105: 1
B106: 103 | C106: 1 | D106: 0
B107: 104 | C107: 1 | D107: 1
B108: 105 | C108: 0 | D108: 0
B109: 106 | C109: 1 | D109: 0
B110: 107 | C110: 1 | D110: 1
B111: 108 | C111: 0 | D111: 1
B112: 109 | C112: 0 | D112: 1
B113: 110 | C113: 0 | D113: 1
B114: 111 | C114: 0 | D114: 1
B115: 112 | C115: 1 | D115: 0
B116: 113 | C116: 1 | D116: 0
B117: 114 | C117: 0 | D117: 0
B118: 115 | C118: 0 | D118: 1
B119: 116 | C119: 1 | D119: 0
B120: 117 | C120: 0 | D120: 1
B121: 118 | C121: 0 | D121: 0
B122: 119 | C122: 1 | D122: 0
B123: 120 | C123: 0 | D123: 1
B124: 121 | C124: 1 | D124: 0
B125: 122 | C125: 0 | D125: 1
B126: 123 | C126: 0 | D126: 1
B127: 124 | C127: 0 | D127: 1
B128: 125 | C128: 1 | D128: 1
B129: 126 | C129: 1 | D129: 1
B130: 127 | C130: 1 | D130: 1
B131: 128 | C131: 1 | D131: 0
B132: 129 | C132: 0 | D132: 0
B133: 130 | C133: 0 | D133: 0
B134: 131 | C134: 1 | D134: 1
B135: 132 | C135: 0 | D135: 0
B136: 133 | C136: 1 | D136: 1
B137: 134 | C137: 1 | D137: 1
B138: 135 | C138: 1 | D138: 1
B139: 136 | C139: 0 | D139: 1
B140: 137 | C140: 0 | D140: 1
B141: 138 | C141: 1 | D141: 1
B142: 139 | C142: 0 | D142: 1
B143: 140 | C143: 0 | D143: 1
B144: 141 | C144: 0 | D144: 0
B145: 142 | C145: 0 | D145: 0
B146: 143 | C146: 0 | D146: 1
B147: 144 | C147: 0 | D147: 1
B148: 145 | C148: 1 | D148: 1
B149: 146 | C149: 1 | D149: 1
B150: 147 | C150: 0 | D150: 0
B151: 148 | C151: 0 | D151: 0
B152: 149 | C152: 1 | D152: 1
B153: 150 | C153: 1 | D153: 1
B154: 151 | C154: 1 | D154: 0
B155: 152 | C155: 1 | D155: 0
B156: 153 | C156: 0 | D156: 1
B157: 154 | C157: 1 | D157: 1
B158: 155 | C158: 1 | D158: 1
B159: 156 | C159: 1 | D159: 0
B160: 157 | C160: 0 | D160: 0
B161: 158 | C161: 0 | D161: 1
B162: 159 | C162: 1 | D162: 1
B163: 160 | C163: 1 | D163: 0
B164: 161 | C164: 0 | D164: 0
B165: 162 | C165: 0 | D165: 0
B166: 163 | C166: 1 | D166: 0
B167: 164 | C167: 1 | D167: 1
B168: 165 | C168: 0 | D168: 1
B169: 166 | C169: 1 | D169: 1
B170: 167 | C170: 1 | D170: 1
B171: 168 | C171: 1 | D171: 1
B172: 169 | C172: 0 | D172: 1
B173: 170 | C173: 0 | D173: 1
B174: 171 | C174: 1 | D174: 1
B175: 172 | C175: 1 | D175: 0
B176: 173 | C176: 0 | D176: 1
B177: 174 | C177: 0 | D177: 0
B178: 175 | C178: 1 | D178: 1
B179: 176 | C179: 1 | D179: 0
B180: 177 | C180: 1 | D180: 0
B181: 178 | C181: 1 | D181: 1
B182: 179 | C182: 1 | D182: 1
B183: 180 | C183: 1 | D183: 0
B184: 181 | C184: 1 | D184: 0
B185: 182 | C185: 1 | D185: 0
B186: 183 | C186: 1 | D186: 1
B187: 184 | C187: 0 | D187: 1
B188: 185 | C188: 0 | D188: 1
B189: 186 | C189: 1 | D189: 0
B190: 187 | C190: 1 | D190: 1
B191: 188 | C191: 1 | D191: 1
B192: 189 | C192: 0 | D192: 0
B193: 190 | C193: 0 | D193: 1
B194: 191 | C194: 0 | D194: 1
B195: 192 | C195: 1 | D195: 1
B196: 193 | C196: 0 | D196: 1
B197: 194 | C197: 1 | D197: 0
B198: 195 | C198: 0 | D198: 0
B199: 196 | C199: 0 | D199: 0
B200: 197 | C200: 0 | D200: 0
... 803 more rows

Sheet SIPmath Chart Data
B1: Coin_1 | C1: Coin_2
A2: Expected Value | B2: =ROUND( AVERAGE( Coin_1 ), $B$9 ) -> 0.5 | C2: =ROUND( AVERAGE( Coin_2 ), $C$9 ) -> 0.61
A3: Series Name | B3: =$B$1 & " Avg " & $B$2 -> Coin_1 Avg 0.5 | C3: =$C$1 & " Avg " & $C$2 -> Coin_2 Avg 0.61
A4: Integer chart? | B4: FALSE | C4: FALSE
A5: Loss Exceedance | B5: FALSE | C5: FALSE
A6: Number of Bins | B6: =IF( $B$4, MIN( INT( MAX( Coin_1 ) - MIN( Coin_1 ) + 1 ), 10 ), 10 ) -> 10 | C6: =IF( $C$4, MIN( INT( MAX( Coin_2 ) - MIN( Coin_2 ) + 1 ), 10 ), 10 ) -> 10
A7: Label position | B7: 10 | C7: 10
A8: Bin Width | B8: =ROUNDUP(( MAX( Coin_1 ) - $B$13 ) / $B$6, $B$9 ) -> 0.1 | C8: =ROUNDUP(( MAX( Coin_2 ) - $C$13 ) / $C$6, $C$9 ) -> 0.1
A9: Decimals | B9: 2 | C9: 2
A10: Scale | B10: 1 | C10: 1
A11: Use Axis Title? | B11: FALSE | C11: FALSE
A12: Axis Title | B12: =IF( AND( $B$11, $B$10 > 1 ), MID( TEXT( $B$10, "#,##0" ), IF( MOD( LEN( TEXT( $B$10, "0" )), 3 ) = 1, 3, 2), 100 ) & "s", "Axis Title" ) -> Axis Title | C12: =IF( AND( $C$11, $C$10 > 1 ), MID( TEXT( $C$10, "#,##0" ), IF( MOD( LEN( TEXT( $C$10, "0" )), 3 ) = 1, 3, 2), 100 ) & "s", "Axis Title" ) -> Axis Title
A13: Min | B13: =ROUND( MIN( Coin_1 ), $B$9 - LOG( $B$10 )) - IF( $B$4, 1, 0 ) -> 0 | C13: =ROUND( MIN( Coin_2 ), $C$9 - LOG( $C$10 )) - IF( $C$4, 1, 0 ) -> 0
A14: Bin Range | B14: =ROUND( $B$13 + $B$8, $B$9 - LOG( $B$10 )) -> 0.1 | C14: =ROUND( $C$13 + $C$8, $C$9 - LOG( $C$10 )) -> 0.1
A15: Frequency | B15: =ROUND( $B$14 + $B$8, $B$9 - LOG( $B$10 )) -> 0.2 | C15: =ROUND( $C$14 + $C$8, $C$9 - LOG( $C$10 )) -> 0.2
A16: Labels | B16: =ROUND( $B$15 + $B$8, $B$9 - LOG( $B$10 )) -> 0.3 | C16: =ROUND( $C$15 + $C$8, $C$9 - LOG( $C$10 )) -> 0.3
A17: Cumulative | B17: =ROUND( $B$16 + $B$8, $B$9 - LOG( $B$10 )) -> 0.4 | C17: =ROUND( $C$16 + $C$8, $C$9 - LOG( $C$10 )) -> 0.4
B18: =ROUND( $B$17 + $B$8, $B$9 - LOG( $B$10 )) -> 0.5 | C18: =ROUND( $C$17 + $C$8, $C$9 - LOG( $C$10 )) -> 0.5
B19: =ROUND( $B$18 + $B$8, $B$9 - LOG( $B$10 )) -> 0.6 | C19: =ROUND( $C$18 + $C$8, $C$9 - LOG( $C$10 )) -> 0.6
B20: =ROUND( $B$19 + $B$8, $B$9 - LOG( $B$10 )) -> 0.7 | C20: =ROUND( $C$19 + $C$8, $C$9 - LOG( $C$10 )) -> 0.7
B21: =ROUND( $B$20 + $B$8, $B$9 - LOG( $B$10 )) -> 0.8 | C21: =ROUND( $C$20 + $C$8, $C$9 - LOG( $C$10 )) -> 0.8
B22: =ROUND( $B$21 + $B$8, $B$9 - LOG( $B$10 )) -> 0.9 | C22: =ROUND( $C$21 + $C$8, $C$9 - LOG( $C$10 )) -> 0.9
B23: =ROUND( $B$22 + $B$8, $B$9 - LOG( $B$10 )) -> 1 | C23: =ROUND( $C$22 + $C$8, $C$9 - LOG( $C$10 )) -> 1
B24: =ROUND( $B$23 + $B$8, $B$9 - LOG( $B$10 )) -> 1.1 | C24: =ROUND( $C$23 + $C$8, $C$9 - LOG( $C$10 )) -> 1.1
B25: =ROUND( $B$24 + $B$8, $B$9 - LOG( $B$10 )) -> 1.2 | C25: =ROUND( $C$24 + $C$8, $C$9 - LOG( $C$10 )) -> 1.2
B26: =ROUND( $B$25 + $B$8, $B$9 - LOG( $B$10 )) -> 1.3 | C26: =ROUND( $C$25 + $C$8, $C$9 - LOG( $C$10 )) -> 1.3
B27: =ROUND( $B$26 + $B$8, $B$9 - LOG( $B$10 )) -> 1.4 | C27: =ROUND( $C$26 + $C$8, $C$9 - LOG( $C$10 )) -> 1.4
B28: =ROUND( $B$27 + $B$8, $B$9 - LOG( $B$10 )) -> 1.5 | C28: =ROUND( $C$27 + $C$8, $C$9 - LOG( $C$10 )) -> 1.5
B29: =ROUND( $B$28 + $B$8, $B$9 - LOG( $B$10 )) -> 1.6 | C29: =ROUND( $C$28 + $C$8, $C$9 - LOG( $C$10 )) -> 1.6
B30: =ROUND( $B$29 + $B$8, $B$9 - LOG( $B$10 )) -> 1.7 | C30: =ROUND( $C$29 + $C$8, $C$9 - LOG( $C$10 )) -> 1.7
B31: =ROUND( $B$30 + $B$8, $B$9 - LOG( $B$10 )) -> 1.8 | C31: =ROUND( $C$30 + $C$8, $C$9 - LOG( $C$10 )) -> 1.8
B32: =ROUND( $B$31 + $B$8, $B$9 - LOG( $B$10 )) -> 1.9 | C32: =ROUND( $C$31 + $C$8, $C$9 - LOG( $C$10 )) -> 1.9
B33: =ROUND( $B$32 + $B$8, $B$9 - LOG( $B$10 )) -> 2 | C33: =ROUND( $C$32 + $C$8, $C$9 - LOG( $C$10 )) -> 2
B34: =ROUND( $B$33 + $B$8, $B$9 - LOG( $B$10 )) -> 2.1 | C34: =ROUND( $C$33 + $C$8, $C$9 - LOG( $C$10 )) -> 2.1
B35: =ROUND( $B$34 + $B$8, $B$9 - LOG( $B$10 )) -> 2.2 | C35: =ROUND( $C$34 + $C$8, $C$9 - LOG( $C$10 )) -> 2.2
B36: =ROUND( $B$35 + $B$8, $B$9 - LOG( $B$10 )) -> 2.3 | C36: =ROUND( $C$35 + $C$8, $C$9 - LOG( $C$10 )) -> 2.3
B37: =ROUND( $B$36 + $B$8, $B$9 - LOG( $B$10 )) -> 2.4 | C37: =ROUND( $C$36 + $C$8, $C$9 - LOG( $C$10 )) -> 2.4
B38: =ROUND( $B$37 + $B$8, $B$9 - LOG( $B$10 )) -> 2.5 | C38: =ROUND( $C$37 + $C$8, $C$9 - LOG( $C$10 )) -> 2.5
B39: =ROUND( $B$38 + $B$8, $B$9 - LOG( $B$10 )) -> 2.6 | C39: =ROUND( $C$38 + $C$8, $C$9 - LOG( $C$10 )) -> 2.6
B40: =ROUND( $B$39 + $B$8, $B$9 - LOG( $B$10 )) -> 2.7 | C40: =ROUND( $C$39 + $C$8, $C$9 - LOG( $C$10 )) -> 2.7
B41: =ROUND( $B$40 + $B$8, $B$9 - LOG( $B$10 )) -> 2.8 | C41: =ROUND( $C$40 + $C$8, $C$9 - LOG( $C$10 )) -> 2.8
B42: =ROUND( $B$41 + $B$8, $B$9 - LOG( $B$10 )) -> 2.9 | C42: =ROUND( $C$41 + $C$8, $C$9 - LOG( $C$10 )) -> 2.9
B43: =ROUND( $B$42 + $B$8, $B$9 - LOG( $B$10 )) -> 3 | C43: =ROUND( $C$42 + $C$8, $C$9 - LOG( $C$10 )) -> 3
B44: =ROUND( $B$43 + $B$8, $B$9 - LOG( $B$10 )) -> 3.1 | C44: =ROUND( $C$43 + $C$8, $C$9 - LOG( $C$10 )) -> 3.1
B45: =ROUND( $B$44 + $B$8, $B$9 - LOG( $B$10 )) -> 3.2 | C45: =ROUND( $C$44 + $C$8, $C$9 - LOG( $C$10 )) -> 3.2
B46: =ROUND( $B$45 + $B$8, $B$9 - LOG( $B$10 )) -> 3.3 | C46: =ROUND( $C$45 + $C$8, $C$9 - LOG( $C$10 )) -> 3.3
B47: =ROUND( $B$46 + $B$8, $B$9 - LOG( $B$10 )) -> 3.4 | C47: =ROUND( $C$46 + $C$8, $C$9 - LOG( $C$10 )) -> 3.4
B48: =ROUND( $B$47 + $B$8, $B$9 - LOG( $B$10 )) -> 3.5 | C48: =ROUND( $C$47 + $C$8, $C$9 - LOG( $C$10 )) -> 3.5
B49: =ROUND( $B$48 + $B$8, $B$9 - LOG( $B$10 )) -> 3.6 | C49: =ROUND( $C$48 + $C$8, $C$9 - LOG( $C$10 )) -> 3.6
B50: =ROUND( $B$49 + $B$8, $B$9 - LOG( $B$10 )) -> 3.7 | C50: =ROUND( $C$49 + $C$8, $C$9 - LOG( $C$10 )) -> 3.7
B51: =ROUND( $B$50 + $B$8, $B$9 - LOG( $B$10 )) -> 3.8 | C51: =ROUND( $C$50 + $C$8, $C$9 - LOG( $C$10 )) -> 3.8
B52: =ROUND( $B$51 + $B$8, $B$9 - LOG( $B$10 )) -> 3.9 | C52: =ROUND( $C$51 + $C$8, $C$9 - LOG( $C$10 )) -> 3.9
B53: =ROUND( $B$52 + $B$8, $B$9 - LOG( $B$10 )) -> 4 | C53: =ROUND( $C$52 + $C$8, $C$9 - LOG( $C$10 )) -> 4
B54: =ROUND( $B$53 + $B$8, $B$9 - LOG( $B$10 )) -> 4.1 | C54: =ROUND( $C$53 + $C$8, $C$9 - LOG( $C$10 )) -> 4.1
B55: =ROUND( $B$54 + $B$8, $B$9 - LOG( $B$10 )) -> 4.2 | C55: =ROUND( $C$54 + $C$8, $C$9 - LOG( $C$10 )) -> 4.2
B56: =ROUND( $B$55 + $B$8, $B$9 - LOG( $B$10 )) -> 4.3 | C56: =ROUND( $C$55 + $C$8, $C$9 - LOG( $C$10 )) -> 4.3
B57: =ROUND( $B$56 + $B$8, $B$9 - LOG( $B$10 )) -> 4.4 | C57: =ROUND( $C$56 + $C$8, $C$9 - LOG( $C$10 )) -> 4.4
B58: =ROUND( $B$57 + $B$8, $B$9 - LOG( $B$10 )) -> 4.5 | C58: =ROUND( $C$57 + $C$8, $C$9 - LOG( $C$10 )) -> 4.5
B59: =ROUND( $B$58 + $B$8, $B$9 - LOG( $B$10 )) -> 4.6 | C59: =ROUND( $C$58 + $C$8, $C$9 - LOG( $C$10 )) -> 4.6
B60: =ROUND( $B$59 + $B$8, $B$9 - LOG( $B$10 )) -> 4.7 | C60: =ROUND( $C$59 + $C$8, $C$9 - LOG( $C$10 )) -> 4.7
B61: =ROUND( $B$60 + $B$8, $B$9 - LOG( $B$10 )) -> 4.8 | C61: =ROUND( $C$60 + $C$8, $C$9 - LOG( $C$10 )) -> 4.8
B62: =ROUND( $B$61 + $B$8, $B$9 - LOG( $B$10 )) -> 4.9 | C62: =ROUND( $C$61 + $C$8, $C$9 - LOG( $C$10 )) -> 4.9
B63: =ROUND( $B$62 + $B$8, $B$9 - LOG( $B$10 )) -> 5 | C63: =ROUND( $C$62 + $C$8, $C$9 - LOG( $C$10 )) -> 5
B64: =ROUND( $B$63 + $B$8, $B$9 - LOG( $B$10 )) -> 5.1 | C64: =ROUND( $C$63 + $C$8, $C$9 - LOG( $C$10 )) -> 5.1
B65: =ROUND( $B$64 + $B$8, $B$9 - LOG( $B$10 )) -> 5.2 | C65: =ROUND( $C$64 + $C$8, $C$9 - LOG( $C$10 )) -> 5.2
B66: =ROUND( $B$65 + $B$8, $B$9 - LOG( $B$10 )) -> 5.3 | C66: =ROUND( $C$65 + $C$8, $C$9 - LOG( $C$10 )) -> 5.3
B67: =ROUND( $B$66 + $B$8, $B$9 - LOG( $B$10 )) -> 5.4 | C67: =ROUND( $C$66 + $C$8, $C$9 - LOG( $C$10 )) -> 5.4
B68: =ROUND( $B$67 + $B$8, $B$9 - LOG( $B$10 )) -> 5.5 | C68: =ROUND( $C$67 + $C$8, $C$9 - LOG( $C$10 )) -> 5.5
B69: =ROUND( $B$68 + $B$8, $B$9 - LOG( $B$10 )) -> 5.6 | C69: =ROUND( $C$68 + $C$8, $C$9 - LOG( $C$10 )) -> 5.6
B70: =ROUND( $B$69 + $B$8, $B$9 - LOG( $B$10 )) -> 5.7 | C70: =ROUND( $C$69 + $C$8, $C$9 - LOG( $C$10 )) -> 5.7
B71: =ROUND( $B$70 + $B$8, $B$9 - LOG( $B$10 )) -> 5.8 | C71: =ROUND( $C$70 + $C$8, $C$9 - LOG( $C$10 )) -> 5.8
B72: =ROUND( $B$71 + $B$8, $B$9 - LOG( $B$10 )) -> 5.9 | C72: =ROUND( $C$71 + $C$8, $C$9 - LOG( $C$10 )) -> 5.9
B73: =ROUND( $B$72 + $B$8, $B$9 - LOG( $B$10 )) -> 6 | C73: =ROUND( $C$72 + $C$8, $C$9 - LOG( $C$10 )) -> 6
B74: =ROUND( $B$73 + $B$8, $B$9 - LOG( $B$10 )) -> 6.1 | C74: =ROUND( $C$73 + $C$8, $C$9 - LOG( $C$10 )) -> 6.1
B75: =ROUND( $B$74 + $B$8, $B$9 - LOG( $B$10 )) -> 6.2 | C75: =ROUND( $C$74 + $C$8, $C$9 - LOG( $C$10 )) -> 6.2
B76: =ROUND( $B$75 + $B$8, $B$9 - LOG( $B$10 )) -> 6.3 | C76: =ROUND( $C$75 + $C$8, $C$9 - LOG( $C$10 )) -> 6.3
B77: =ROUND( $B$76 + $B$8, $B$9 - LOG( $B$10 )) -> 6.4 | C77: =ROUND( $C$76 + $C$8, $C$9 - LOG( $C$10 )) -> 6.4
B78: =ROUND( $B$77 + $B$8, $B$9 - LOG( $B$10 )) -> 6.5 | C78: =ROUND( $C$77 + $C$8, $C$9 - LOG( $C$10 )) -> 6.5
B79: =ROUND( $B$78 + $B$8, $B$9 - LOG( $B$10 )) -> 6.6 | C79: =ROUND( $C$78 + $C$8, $C$9 - LOG( $C$10 )) -> 6.6
B80: =ROUND( $B$79 + $B$8, $B$9 - LOG( $B$10 )) -> 6.7 | C80: =ROUND( $C$79 + $C$8, $C$9 - LOG( $C$10 )) -> 6.7
B81: =ROUND( $B$80 + $B$8, $B$9 - LOG( $B$10 )) -> 6.8 | C81: =ROUND( $C$80 + $C$8, $C$9 - LOG( $C$10 )) -> 6.8
B82: =ROUND( $B$81 + $B$8, $B$9 - LOG( $B$10 )) -> 6.9 | C82: =ROUND( $C$81 + $C$8, $C$9 - LOG( $C$10 )) -> 6.9
B83: =ROUND( $B$82 + $B$8, $B$9 - LOG( $B$10 )) -> 7 | C83: =ROUND( $C$82 + $C$8, $C$9 - LOG( $C$10 )) -> 7
B84: =ROUND( $B$83 + $B$8, $B$9 - LOG( $B$10 )) -> 7.1 | C84: =ROUND( $C$83 + $C$8, $C$9 - LOG( $C$10 )) -> 7.1
B85: =ROUND( $B$84 + $B$8, $B$9 - LOG( $B$10 )) -> 7.2 | C85: =ROUND( $C$84 + $C$8, $C$9 - LOG( $C$10 )) -> 7.2
B86: =ROUND( $B$85 + $B$8, $B$9 - LOG( $B$10 )) -> 7.3 | C86: =ROUND( $C$85 + $C$8, $C$9 - LOG( $C$10 )) -> 7.3
B87: =ROUND( $B$86 + $B$8, $B$9 - LOG( $B$10 )) -> 7.4 | C87: =ROUND( $C$86 + $C$8, $C$9 - LOG( $C$10 )) -> 7.4
B88: =ROUND( $B$87 + $B$8, $B$9 - LOG( $B$10 )) -> 7.5 | C88: =ROUND( $C$87 + $C$8, $C$9 - LOG( $C$10 )) -> 7.5
B89: =ROUND( $B$88 + $B$8, $B$9 - LOG( $B$10 )) -> 7.6 | C89: =ROUND( $C$88 + $C$8, $C$9 - LOG( $C$10 )) -> 7.6
B90: =ROUND( $B$89 + $B$8, $B$9 - LOG( $B$10 )) -> 7.7 | C90: =ROUND( $C$89 + $C$8, $C$9 - LOG( $C$10 )) -> 7.7
B91: =ROUND( $B$90 + $B$8, $B$9 - LOG( $B$10 )) -> 7.8 | C91: =ROUND( $C$90 + $C$8, $C$9 - LOG( $C$10 )) -> 7.8
B92: =ROUND( $B$91 + $B$8, $B$9 - LOG( $B$10 )) -> 7.9 | C92: =ROUND( $C$91 + $C$8, $C$9 - LOG( $C$10 )) -> 7.9
B93: =ROUND( $B$92 + $B$8, $B$9 - LOG( $B$10 )) -> 8 | C93: =ROUND( $C$92 + $C$8, $C$9 - LOG( $C$10 )) -> 8
B94: =ROUND( $B$93 + $B$8, $B$9 - LOG( $B$10 )) -> 8.1 | C94: =ROUND( $C$93 + $C$8, $C$9 - LOG( $C$10 )) -> 8.1
B95: =ROUND( $B$94 + $B$8, $B$9 - LOG( $B$10 )) -> 8.2 | C95: =ROUND( $C$94 + $C$8, $C$9 - LOG( $C$10 )) -> 8.2
B96: =ROUND( $B$95 + $B$8, $B$9 - LOG( $B$10 )) -> 8.3 | C96: =ROUND( $C$95 + $C$8, $C$9 - LOG( $C$10 )) -> 8.3
B97: =ROUND( $B$96 + $B$8, $B$9 - LOG( $B$10 )) -> 8.4 | C97: =ROUND( $C$96 + $C$8, $C$9 - LOG( $C$10 )) -> 8.4
B98: =ROUND( $B$97 + $B$8, $B$9 - LOG( $B$10 )) -> 8.5 | C98: =ROUND( $C$97 + $C$8, $C$9 - LOG( $C$10 )) -> 8.5
B99: =ROUND( $B$98 + $B$8, $B$9 - LOG( $B$10 )) -> 8.6 | C99: =ROUND( $C$98 + $C$8, $C$9 - LOG( $C$10 )) -> 8.6
B100: =ROUND( $B$99 + $B$8, $B$9 - LOG( $B$10 )) -> 8.7 | C100: =ROUND( $C$99 + $C$8, $C$9 - LOG( $C$10 )) -> 8.7
B101: =ROUND( $B$100 + $B$8, $B$9 - LOG( $B$10 )) -> 8.8 | C101: =ROUND( $C$100 + $C$8, $C$9 - LOG( $C$10 )) -> 8.8
B102: =ROUND( $B$101 + $B$8, $B$9 - LOG( $B$10 )) -> 8.9 | C102: =ROUND( $C$101 + $C$8, $C$9 - LOG( $C$10 )) -> 8.9
B103: =ROUND( $B$102 + $B$8, $B$9 - LOG( $B$10 )) -> 9 | C103: =ROUND( $C$102 + $C$8, $C$9 - LOG( $C$10 )) -> 9
B104: =ROUND( $B$103 + $B$8, $B$9 - LOG( $B$10 )) -> 9.1 | C104: =ROUND( $C$103 + $C$8, $C$9 - LOG( $C$10 )) -> 9.1
B105: =ROUND( $B$104 + $B$8, $B$9 - LOG( $B$10 )) -> 9.2 | C105: =ROUND( $C$104 + $C$8, $C$9 - LOG( $C$10 )) -> 9.2
B106: =ROUND( $B$105 + $B$8, $B$9 - LOG( $B$10 )) -> 9.3 | C106: =ROUND( $C$105 + $C$8, $C$9 - LOG( $C$10 )) -> 9.3
B107: =ROUND( $B$106 + $B$8, $B$9 - LOG( $B$10 )) -> 9.4 | C107: =ROUND( $C$106 + $C$8, $C$9 - LOG( $C$10 )) -> 9.4
B108: =ROUND( $B$107 + $B$8, $B$9 - LOG( $B$10 )) -> 9.5 | C108: =ROUND( $C$107 + $C$8, $C$9 - LOG( $C$10 )) -> 9.5
B109: =ROUND( $B$108 + $B$8, $B$9 - LOG( $B$10 )) -> 9.6 | C109: =ROUND( $C$108 + $C$8, $C$9 - LOG( $C$10 )) -> 9.6
B110: =ROUND( $B$109 + $B$8, $B$9 - LOG( $B$10 )) -> 9.7 | C110: =ROUND( $C$109 + $C$8, $C$9 - LOG( $C$10 )) -> 9.7
B111: =ROUND( $B$110 + $B$8, $B$9 - LOG( $B$10 )) -> 9.8 | C111: =ROUND( $C$110 + $C$8, $C$9 - LOG( $C$10 )) -> 9.8
B112: =ROUND( $B$111 + $B$8, $B$9 - LOG( $B$10 )) -> 9.9 | C112: =ROUND( $C$111 + $C$8, $C$9 - LOG( $C$10 )) -> 9.9
B113: =ROUND( $B$112 + $B$8, $B$9 - LOG( $B$10 )) -> 10 | C113: =ROUND( $C$112 + $C$8, $C$9 - LOG( $C$10 )) -> 10
B114: =ROUND( $B$113 + $B$8, $B$9 - LOG( $B$10 )) -> 10.1 | C114: =ROUND( $C$113 + $C$8, $C$9 - LOG( $C$10 )) -> 10.1
B115: =ROUND( $B$114 + $B$8, $B$9 - LOG( $B$10 )) -> 10.2 | C115: =ROUND( $C$114 + $C$8, $C$9 - LOG( $C$10 )) -> 10.2
B116: =FREQUENCY( Coin_1, PM_Coin_1_bins ) / COUNT( Coin_1 ) -> 0.502 | C116: =FREQUENCY( Coin_2, PM_Coin_2_bins ) / COUNT( Coin_2 ) -> 0.387
B117: 0 | C117: 0
B118: 0 | C118: 0
B119: 0 | C119: 0
B120: 0 | C120: 0
B121: 0 | C121: 0
B122: 0 | C122: 0
B123: 0 | C123: 0
B124: 0 | C124: 0
B125: 0.498 | C125: 0.613
B126: 0 | C126: 0
B127: 0 | C127: 0
B128: 0 | C128: 0
B129: 0 | C129: 0
B130: 0 | C130: 0
B131: 0 | C131: 0
B132: 0 | C132: 0
B133: 0 | C133: 0
B134: 0 | C134: 0
B135: 0 | C135: 0
B136: 0 | C136: 0
B137: 0 | C137: 0
B138: 0 | C138: 0
B139: 0 | C139: 0
B140: 0 | C140: 0
B141: 0 | C141: 0
B142: 0 | C142: 0
B143: 0 | C143: 0
B144: 0 | C144: 0
B145: 0 | C145: 0
B146: 0 | C146: 0
B147: 0 | C147: 0
B148: 0 | C148: 0
B149: 0 | C149: 0
B150: 0 | C150: 0
B151: 0 | C151: 0
B152: 0 | C152: 0
B153: 0 | C153: 0
B154: 0 | C154: 0
B155: 0 | C155: 0
B156: 0 | C156: 0
B157: 0 | C157: 0
B158: 0 | C158: 0
B159: 0 | C159: 0
B160: 0 | C160: 0
B161: 0 | C161: 0
B162: 0 | C162: 0
B163: 0 | C163: 0
B164: 0 | C164: 0
B165: 0 | C165: 0
B166: 0 | C166: 0
B167: 0 | C167: 0
B168: 0 | C168: 0
B169: 0 | C169: 0
B170: 0 | C170: 0
B171: 0 | C171: 0
B172: 0 | C172: 0
B173: 0 | C173: 0
B174: 0 | C174: 0
B175: 0 | C175: 0
B176: 0 | C176: 0
B177: 0 | C177: 0
B178: 0 | C178: 0
B179: 0 | C179: 0
B180: 0 | C180: 0
B181: 0 | C181: 0
B182: 0 | C182: 0
B183: 0 | C183: 0
B184: 0 | C184: 0
B185: 0 | C185: 0
B186: 0 | C186: 0
B187: 0 | C187: 0
B188: 0 | C188: 0
B189: 0 | C189: 0
B190: 0 | C190: 0
B191: 0 | C191: 0
B192: 0 | C192: 0
B193: 0 | C193: 0
B194: 0 | C194: 0
B195: 0 | C195: 0
B196: 0 | C196: 0
B197: 0 | C197: 0
B198: 0 | C198: 0
B199: 0 | C199: 0
B200: 0 | C200: 0
... 224 more rows
